[Event "December 5 Early 2023"]
[Site "https://www.chess.com"]
[Date "2023.12.05"]
[Round "2"]
[White "Truskavetsky, Alexandr"]
[Black "Molina, Roberto Junio Brito"]
[Result "1-0"]
[Board "56"]
[TimeControl "180+1"]
[WhiteFideId "14108577"]
[BlackFideId "2109450"]
[WhiteElo "2566"]
[BlackElo "2832"]
[WhiteTeam "RUS"]
[BlackTeam "BRA"]
[WhiteClock "0:00:47"]
[BlackClock "0:00:11"]

1. d4 {[%clk 0:03:00]}  d5 {[%clk 0:02:58]} 2. c4 {[%clk 0:03:00]}  c6 {[%clk 0:02:58]} 3. cxd5 {[%clk 0:03:00]}  cxd5 {[%clk 0:02:53]} 4. Nc3 {[%clk 0:03:00]}  Nf6 {[%clk 0:02:53]} 5. Bg5 {[%clk 0:03:00]}  e6 {[%clk 0:02:52]} 6. e3 {[%clk 0:03:00]}  Qb6 {[%clk 0:02:47]} 7. Qc2 {[%clk 0:02:57]}  Nc6 {[%clk 0:02:45]} 8. a3 {[%clk 0:02:57]}  Be7 {[%clk 0:02:41]} 9. Bd3 {[%clk 0:02:57]}  h6 {[%clk 0:02:41]} 10. Bh4 {[%clk 0:02:56]}  Bd7 {[%clk 0:02:35]} 11. Nge2 {[%clk 0:02:57]}  O-O {[%clk 0:02:35]} 12. O-O {[%clk 0:02:56]}  Rfc8 {[%clk 0:02:34]} 13. b4 {[%clk 0:02:56]}  Qd8 {[%clk 0:02:34]} 14. Qb3 {[%clk 0:02:51]}  a6 {[%clk 0:02:27]} 15. f3 {[%clk 0:02:43]}  Be8 {[%clk 0:02:23]} 16. Rad1 {[%clk 0:02:41]}  b5 {[%clk 0:02:17]} 17. h3 {[%clk 0:02:41]}  a5 {[%clk 0:02:09]} 18. Bxb5 {[%clk 0:02:34]}  axb4 {[%clk 0:02:08]} 19. axb4 {[%clk 0:02:34]}  Nxb4 {[%clk 0:02:03]} 20. Bxf6 {[%clk 0:02:29]}  gxf6 {[%clk 0:02:02]} 21. Bxe8 {[%clk 0:02:29]}  Qxe8 {[%clk 0:02:01]} 22. Ra1 {[%clk 0:02:29]}  Rab8 {[%clk 0:01:51]} 23. Qd1 {[%clk 0:02:27]}  f5 {[%clk 0:01:51]} 24. Qe1 {[%clk 0:02:24]}  Qf8 {[%clk 0:01:49]} 25. Qg3+ {[%clk 0:02:24]}  Qg7 {[%clk 0:01:48]} 26. Qxg7+ {[%clk 0:02:15]}  Kxg7 {[%clk 0:01:49]} 27. Kf2 {[%clk 0:02:15]}  Rc7 {[%clk 0:01:41]} 28. Rfd1 {[%clk 0:02:14]}  Rbc8 {[%clk 0:01:40]} 29. Na2 {[%clk 0:02:09]}  Nc2 {[%clk 0:01:35]} 30. Rab1 {[%clk 0:02:06]}  Na3 {[%clk 0:01:32]} 31. Rbc1 {[%clk 0:02:02]}  Nc4 {[%clk 0:01:31]} 32. Nac3 {[%clk 0:02:02]}  Bg5 {[%clk 0:01:28]} 33. f4 {[%clk 0:01:59]}  Be7 {[%clk 0:01:25]} 34. g4 {[%clk 0:01:58]}  fxg4 {[%clk 0:01:24]} 35. hxg4 {[%clk 0:01:58]}  Ba3 {[%clk 0:01:11]} 36. Rb1 {[%clk 0:01:57]}  Nd6 {[%clk 0:01:09]} 37. Nb5 {[%clk 0:01:49]}  Nxb5 {[%clk 0:00:57]} 38. Rxb5 {[%clk 0:01:48]}  Rc2 {[%clk 0:00:53]} 39. Ra1 {[%clk 0:01:45]}  Be7 {[%clk 0:00:52]} 40. Ra7 {[%clk 0:01:42]}  R8c7 {[%clk 0:00:52]} 41. Rbb7 {[%clk 0:01:40]}  Rxb7 {[%clk 0:00:52]} 42. Rxb7 {[%clk 0:01:40]}  Bh4+ {[%clk 0:00:52]} 43. Kf3 {[%clk 0:01:41]}  Kg6 {[%clk 0:00:51]} 44. f5+ {[%clk 0:01:40]}  exf5 {[%clk 0:00:47]} 45. gxf5+ {[%clk 0:01:36]}  Kxf5 {[%clk 0:00:42]} 46. Rxf7+ {[%clk 0:01:35]}  Ke6 {[%clk 0:00:42]} 47. Ra7 {[%clk 0:01:31]}  Bg5 {[%clk 0:00:41]} 48. Ra6+ {[%clk 0:01:31]}  Kd7 {[%clk 0:00:37]} 49. Nf4 {[%clk 0:01:30]}  Rc6 {[%clk 0:00:36]} 50. Ra7+ {[%clk 0:01:29]}  Kd6 {[%clk 0:00:36]} 51. Rg7 {[%clk 0:01:24]}  Bxf4 {[%clk 0:00:37]} 52. Kxf4 {[%clk 0:01:24]}  Rc3 {[%clk 0:00:31]} 53. Rg6+ {[%clk 0:01:24]}  Ke7 {[%clk 0:00:31]} 54. Rxh6 {[%clk 0:01:24]}  Rb3 {[%clk 0:00:31]} 55. Rh3 {[%clk 0:01:19]}  Kf6 {[%clk 0:00:31]} 56. Rg3 {[%clk 0:01:17]}  Ra3 {[%clk 0:00:30]} 57. e4 {[%clk 0:01:16]}  Ra4 {[%clk 0:00:23]} 58. e5+ {[%clk 0:01:09]}  Ke6 {[%clk 0:00:21]} 59. Rg6+ {[%clk 0:01:08]}  Ke7 {[%clk 0:00:21]} 60. Rb6 {[%clk 0:01:05]}  Rxd4+ {[%clk 0:00:21]} 61. Kf5 {[%clk 0:01:06]}  Rd1 {[%clk 0:00:20]} 62. Rb7+ {[%clk 0:01:06]}  Ke8 {[%clk 0:00:20]} 63. Ke6 {[%clk 0:01:06]}  Kf8 {[%clk 0:00:20]} 64. Kd7 {[%clk 0:01:05]}  Re1 {[%clk 0:00:19]} 65. e6 {[%clk 0:01:05]}  d4 {[%clk 0:00:19]} 66. Rb4 {[%clk 0:00:57]}  Re4 {[%clk 0:00:17]} 67. Rb8+ {[%clk 0:00:56]}  Kg7 {[%clk 0:00:17]} 68. e7 {[%clk 0:00:56]}  d3 {[%clk 0:00:17]} 69. e8=Q {[%clk 0:00:55]}  d2 {[%clk 0:00:14]} 70. Qg8+ {[%clk 0:00:48]}  Kf6 {[%clk 0:00:13]} 71. Rf8+ {[%clk 0:00:47]}  Ke5 {[%clk 0:00:11]} 72. Qg5+ {[%clk 0:00:47]} 1-0

[Event "December 5 Early 2023"]
[Site "https://www.chess.com"]
[Date "2023.12.05"]
[Round "2"]
[White "Vakhlamov, Igor L."]
[Black "Stankovic, Boris"]
[Result "1-0"]
[Board "57"]
[TimeControl "180+1"]
[WhiteFideId "24126748"]
[BlackFideId "985317"]
[WhiteElo "2830"]
[BlackElo "2565"]
[WhiteTeam "RUS"]
[BlackTeam "SRB"]
[WhiteClock "0:00:40"]
[BlackClock "0:00:19"]

1. e4 {[%clk 0:03:00]}  c5 {[%clk 0:02:58]} 2. Nf3 {[%clk 0:03:01]}  Nc6 {[%clk 0:02:58]} 3. Nc3 {[%clk 0:03:02]}  g6 {[%clk 0:02:57]} 4. d4 {[%clk 0:03:02]}  cxd4 {[%clk 0:02:58]} 5. Nxd4 {[%clk 0:03:03]}  Bg7 {[%clk 0:02:58]} 6. Nxc6 {[%clk 0:03:00]}  bxc6 {[%clk 0:02:58]} 7. Bc4 {[%clk 0:03:01]}  Qc7 {[%clk 0:02:55]} 8. O-O {[%clk 0:03:00]}  Nf6 {[%clk 0:02:55]} 9. Re1 {[%clk 0:03:00]}  d6 {[%clk 0:02:51]} 10. Bf4 {[%clk 0:03:00]}  Nd7 {[%clk 0:02:48]} 11. Qd2 {[%clk 0:02:57]}  O-O {[%clk 0:02:47]} 12. Bh6 {[%clk 0:02:55]}  Rb8 {[%clk 0:02:39]} 13. Bb3 {[%clk 0:02:53]}  Nc5 {[%clk 0:02:21]} 14. Rad1 {[%clk 0:02:50]}  Be6 {[%clk 0:02:06]} 15. h4 {[%clk 0:02:36]}  Rfd8 {[%clk 0:02:02]} 16. h5 {[%clk 0:02:31]}  Nxb3 {[%clk 0:01:43]} 17. axb3 {[%clk 0:02:24]}  Qa5 {[%clk 0:01:38]} 18. hxg6 {[%clk 0:02:21]}  hxg6 {[%clk 0:01:38]} 19. Bxg7 {[%clk 0:02:10]}  Kxg7 {[%clk 0:01:37]} 20. Qd4+ {[%clk 0:02:11]}  f6 {[%clk 0:01:35]} 21. Ra1 {[%clk 0:02:11]}  Qh5 {[%clk 0:01:33]} 22. Rxa7 {[%clk 0:02:06]}  Kf7 {[%clk 0:01:20]} 23. f4 {[%clk 0:01:09]}  Rh8 {[%clk 0:00:51]} 24. f5 {[%clk 0:01:08]}  Qh2+ {[%clk 0:00:40]} 25. Kf2 {[%clk 0:01:07]}  Qf4+ {[%clk 0:00:36]} 26. Ke2 {[%clk 0:00:56]}  gxf5 {[%clk 0:00:35]} 27. Qe3 {[%clk 0:00:51]}  Qg4+ {[%clk 0:00:31]} 28. Kd2 {[%clk 0:00:45]}  Rh2 {[%clk 0:00:28]} 29. exf5 {[%clk 0:00:40]}  Rxg2+ {[%clk 0:00:26]} 30. Kc1 {[%clk 0:00:40]}  Qxf5 {[%clk 0:00:26]} 31. Ne4 {[%clk 0:00:41]}  Re8 {[%clk 0:00:19]} 32. Nxd6+ {[%clk 0:00:40]} 1-0

[Event "December 5 Early 2023"]
[Site "https://www.chess.com"]
[Date "2023.12.05"]
[Round "2"]
[White "Teterev, Vitaly"]
[Black "Klimkowski, Jan"]
[Result "0-1"]
[Board "61"]
[TimeControl "180+1"]
[WhiteFideId "13501429"]
[BlackFideId "21856222"]
[WhiteElo "2562"]
[BlackElo "2819"]
[WhiteTeam "BLR"]
[BlackTeam "POL"]
[WhiteClock "0:00:00"]
[BlackClock "0:00:06"]

1. e4 {[%clk 0:02:44]}  g6 {[%clk 0:02:59]} 2. d4 {[%clk 0:02:43]}  Bg7 {[%clk 0:02:59]} 3. Nf3 {[%clk 0:02:43]}  d6 {[%clk 0:02:59]} 4. c3 {[%clk 0:02:43]}  Nf6 {[%clk 0:02:59]} 5. Bd3 {[%clk 0:02:43]}  O-O {[%clk 0:02:59]} 6. O-O {[%clk 0:02:43]}  Nc6 {[%clk 0:02:48]} 7. Re1 {[%clk 0:02:42]}  e5 {[%clk 0:02:48]} 8. h3 {[%clk 0:02:42]}  Nh5 {[%clk 0:02:45]} 9. Be3 {[%clk 0:02:35]}  Nf4 {[%clk 0:02:38]} 10. Bf1 {[%clk 0:02:33]}  h6 {[%clk 0:02:27]} 11. Nbd2 {[%clk 0:02:31]}  g5 {[%clk 0:02:25]} 12. dxe5 {[%clk 0:02:25]}  dxe5 {[%clk 0:02:20]} 13. Nc4 {[%clk 0:02:23]}  Qe7 {[%clk 0:02:17]} 14. b4 {[%clk 0:02:17]}  Rd8 {[%clk 0:02:15]} 15. Qc2 {[%clk 0:02:14]}  a6 {[%clk 0:02:01]} 16. a4 {[%clk 0:02:08]}  b6 {[%clk 0:01:37]} 17. b5 {[%clk 0:01:41]}  Nb8 {[%clk 0:01:33]} 18. Rad1 {[%clk 0:01:14]}  Nd7 {[%clk 0:01:29]} 19. g3 {[%clk 0:01:10]}  Ne6 {[%clk 0:01:27]} 20. h4 {[%clk 0:01:07]}  g4 {[%clk 0:01:24]} 21. Nfd2 {[%clk 0:01:05]}  axb5 {[%clk 0:01:23]} 22. axb5 {[%clk 0:01:05]}  Bb7 {[%clk 0:01:22]} 23. Be2 {[%clk 0:01:03]}  h5 {[%clk 0:01:21]} 24. Nb3 {[%clk 0:00:58]}  Ndc5 {[%clk 0:01:21]} 25. Nxc5 {[%clk 0:00:53]}  Nxc5 {[%clk 0:01:22]} 26. Nd2 {[%clk 0:00:48]}  Qe6 {[%clk 0:01:17]} 27. Bxc5 {[%clk 0:00:40]}  bxc5 {[%clk 0:01:17]} 28. Nc4 {[%clk 0:00:41]}  Bf8 {[%clk 0:01:09]} 29. Rxd8 {[%clk 0:00:37]}  Rxd8 {[%clk 0:01:08]} 30. Ne3 {[%clk 0:00:38]}  Bh6 {[%clk 0:00:59]} 31. Bc4 {[%clk 0:00:37]}  Qf6 {[%clk 0:00:53]} 32. Nf5 {[%clk 0:00:27]}  Bf8 {[%clk 0:00:40]} 33. Qa2 {[%clk 0:00:21]}  Bxe4 {[%clk 0:00:37]} 34. Rxe4 {[%clk 0:00:18]}  Qxf5 {[%clk 0:00:37]} 35. Re1 {[%clk 0:00:17]}  Bh6 {[%clk 0:00:36]} 36. Bd5 {[%clk 0:00:17]}  Kg7 {[%clk 0:00:32]} 37. Qc4 {[%clk 0:00:15]}  Bd2 {[%clk 0:00:29]} 38. Re2 {[%clk 0:00:14]}  Bh6 {[%clk 0:00:25]} 39. Qxc5 {[%clk 0:00:13]}  Qd3 {[%clk 0:00:22]} 40. Bc4 {[%clk 0:00:11]}  Qd6 {[%clk 0:00:20]} 41. Qxe5+ {[%clk 0:00:10]}  Qxe5 {[%clk 0:00:20]} 42. Rxe5 {[%clk 0:00:11]}  Kf6 {[%clk 0:00:17]} 43. Rxh5 {[%clk 0:00:10]}  Bd2 {[%clk 0:00:17]} 44. Rh7 {[%clk 0:00:08]}  Rd7 {[%clk 0:00:18]} 45. Be2 {[%clk 0:00:07]}  Bxc3 {[%clk 0:00:16]} 46. Bxg4 {[%clk 0:00:07]}  Rd2 {[%clk 0:00:16]} 47. Bh5 {[%clk 0:00:07]}  Rd7 {[%clk 0:00:17]} 48. Kg2 {[%clk 0:00:07]}  Bb4 {[%clk 0:00:14]} 49. Bg4 {[%clk 0:00:06]}  Rd2 {[%clk 0:00:14]} 50. Rh6+ {[%clk 0:00:06]}  Kg7 {[%clk 0:00:13]} 51. Rh5 {[%clk 0:00:06]}  Ba5 {[%clk 0:00:13]} 52. Rf5 {[%clk 0:00:06]}  Bb6 {[%clk 0:00:13]} 53. Rf3 {[%clk 0:00:06]}  Rd5 {[%clk 0:00:12]} 54. Rf5 {[%clk 0:00:05]}  Rd2 {[%clk 0:00:12]} 55. Bh5 {[%clk 0:00:05]}  f6 {[%clk 0:00:13]} 56. g4 {[%clk 0:00:05]}  Bd4 {[%clk 0:00:12]} 57. g5 {[%clk 0:00:05]}  Rb2 {[%clk 0:00:11]} 58. Kg3 {[%clk 0:00:05]}  Be5+ {[%clk 0:00:11]} 59. f4 {[%clk 0:00:04]}  Bd4 {[%clk 0:00:12]} 60. gxf6+ {[%clk 0:00:03]}  Bxf6 {[%clk 0:00:12]} 61. Rd5 {[%clk 0:00:03]}  Kh6 {[%clk 0:00:11]} 62. Bf3 {[%clk 0:00:03]}  Rb3 {[%clk 0:00:12]} 63. Kg4 {[%clk 0:00:03]}  Rb1 {[%clk 0:00:11]} 64. Rh5+ {[%clk 0:00:03]}  Kg7 {[%clk 0:00:11]} 65. Rd5 {[%clk 0:00:03]}  Kh6 {[%clk 0:00:11]} 66. Rd7 {[%clk 0:00:02]}  Rc1 {[%clk 0:00:11]} 67. Be4 {[%clk 0:00:02]}  Bg7 {[%clk 0:00:10]} 68. Re7 {[%clk 0:00:03]}  Rg1+ {[%clk 0:00:08]} 69. Kf3 {[%clk 0:00:03]}  Rc1 {[%clk 0:00:06]} 70. Re6+ {[%clk 0:00:03]}  Kh5 {[%clk 0:00:07]} 71. Rg6 {[%clk 0:00:00]}  Bd4 {[%clk 0:00:06]} 0-1

[Event "December 5 Early 2023"]
[Site "https://www.chess.com"]
[Date "2023.12.05"]
[Round "2"]
[White "Dyachuk, Artem"]
[Black "IM_ArthurDW08"]
[Result "1-0"]
[Board "62"]
[TimeControl "180+1"]
[WhiteFideId "34107924"]
[WhiteElo "2560"]
[BlackElo "2817"]
[WhiteTeam "UKR"]
[WhiteClock "0:00:06"]
[BlackClock "0:00:00"]

1. e4 {[%clk 0:03:00]}  c5 {[%clk 0:03:00]} 2. Nf3 {[%clk 0:03:00]}  e6 {[%clk 0:02:57]} 3. d4 {[%clk 0:02:59]}  cxd4 {[%clk 0:02:58]} 4. Nxd4 {[%clk 0:03:00]}  Nf6 {[%clk 0:02:59]} 5. Nc3 {[%clk 0:03:00]}  Nc6 {[%clk 0:02:58]} 6. Ndb5 {[%clk 0:03:01]}  d6 {[%clk 0:02:50]} 7. Bf4 {[%clk 0:03:00]}  e5 {[%clk 0:02:50]} 8. Bg5 {[%clk 0:03:01]}  a6 {[%clk 0:02:51]} 9. Na3 {[%clk 0:03:01]}  Be6 {[%clk 0:02:51]} 10. Nc4 {[%clk 0:02:57]}  Rb8 {[%clk 0:02:50]} 11. Bxf6 {[%clk 0:02:39]}  Qxf6 {[%clk 0:02:51]} 12. Nb6 {[%clk 0:02:31]}  Qd8 {[%clk 0:02:41]} 13. Ncd5 {[%clk 0:02:28]}  g6 {[%clk 0:02:25]} 14. Be2 {[%clk 0:02:25]}  Bg7 {[%clk 0:02:20]} 15. O-O {[%clk 0:02:23]}  O-O {[%clk 0:02:19]} 16. c3 {[%clk 0:02:23]}  f5 {[%clk 0:02:10]} 17. Bc4 {[%clk 0:02:13]}  Kh8 {[%clk 0:01:43]} 18. Qe2 {[%clk 0:02:08]}  f4 {[%clk 0:01:32]} 19. f3 {[%clk 0:02:04]}  g5 {[%clk 0:01:10]} 20. Rad1 {[%clk 0:02:04]}  Na5 {[%clk 0:00:51]} 21. Bd3 {[%clk 0:02:01]}  h5 {[%clk 0:00:47]} 22. b4 {[%clk 0:01:57]}  Nc6 {[%clk 0:00:45]} 23. Bc4 {[%clk 0:01:58]}  Re8 {[%clk 0:00:41]} 24. Rd2 {[%clk 0:01:52]}  g4 {[%clk 0:00:41]} 25. Rfd1 {[%clk 0:01:45]}  Qh4 {[%clk 0:00:41]} 26. Nc7 {[%clk 0:01:23]}  gxf3 {[%clk 0:00:29]} 27. gxf3 {[%clk 0:01:22]}  Bxc4 {[%clk 0:00:27]} 28. Nxc4 {[%clk 0:01:20]}  Rg8 {[%clk 0:00:22]} 29. Kh1 {[%clk 0:01:18]}  Bf8 {[%clk 0:00:20]} 30. Nxd6 {[%clk 0:01:09]}  Bxd6 {[%clk 0:00:21]} 31. Rxd6 {[%clk 0:01:09]}  Rg3 {[%clk 0:00:18]} 32. Rh6+ {[%clk 0:00:46]}  Kg7 {[%clk 0:00:17]} 33. Re6 {[%clk 0:00:47]}  Rd8 {[%clk 0:00:10]} 34. Rxd8 {[%clk 0:00:44]}  Nxd8 {[%clk 0:00:11]} 35. Re8 {[%clk 0:00:44]}  Nf7 {[%clk 0:00:11]} 36. Ne6+ {[%clk 0:00:40]}  Kf6 {[%clk 0:00:11]} 37. Nf8 {[%clk 0:00:18]}  Ng5 {[%clk 0:00:12]} 38. Qf2 {[%clk 0:00:10]}  Nxf3 {[%clk 0:00:02]} 39. Qb6+ {[%clk 0:00:11]}  Kg7 {[%clk 0:00:02]} 40. Qc7+ {[%clk 0:00:09]}  Kh6 {[%clk 0:00:02]} 41. Qd6+ {[%clk 0:00:08]}  Kg7 {[%clk 0:00:02]} 42. Re7+ {[%clk 0:00:08]}  Kg8 {[%clk 0:00:00]} 43. Qe6+ {[%clk 0:00:06]} 1-0

[Event "December 5 Early 2023"]
[Site "https://www.chess.com"]
[Date "2023.12.05"]
[Round "2"]
[White "Skvortsov, Andrei"]
[Black "Waldhausen Gordon, Frederick"]
[Result "1-0"]
[Board "65"]
[TimeControl "180+1"]
[WhiteFideId "24108600"]
[BlackFideId "2409143"]
[WhiteElo "2802"]
[BlackElo "2555"]
[WhiteTeam "MNE"]
[BlackTeam "SCO"]
[WhiteClock "0:01:01"]
[BlackClock "0:00:11"]

1. e4 {[%clk 0:03:00]}  c5 {[%clk 0:02:59]} 2. d4 {[%clk 0:03:01]}  cxd4 {[%clk 0:02:59]} 3. Qxd4 {[%clk 0:03:02]}  Nc6 {[%clk 0:02:59]} 4. Qd3 {[%clk 0:03:02]}  Nf6 {[%clk 0:02:59]} 5. Nc3 {[%clk 0:03:03]}  d6 {[%clk 0:02:57]} 6. Nf3 {[%clk 0:03:02]}  g6 {[%clk 0:02:57]} 7. Be2 {[%clk 0:03:02]}  Bg7 {[%clk 0:02:57]} 8. O-O {[%clk 0:03:03]}  O-O {[%clk 0:02:57]} 9. Nd5 {[%clk 0:03:04]}  Be6 {[%clk 0:02:57]} 10. c3 {[%clk 0:03:04]}  Rc8 {[%clk 0:02:55]} 11. Bg5 {[%clk 0:03:04]}  Nd7 {[%clk 0:02:52]} 12. Bh4 {[%clk 0:03:01]}  h6 {[%clk 0:02:51]} 13. Rfd1 {[%clk 0:02:57]}  Nc5 {[%clk 0:02:47]} 14. Qe3 {[%clk 0:02:57]}  Qd7 {[%clk 0:02:32]} 15. Bb5 {[%clk 0:02:50]}  Rfe8 {[%clk 0:02:26]} 16. Nd4 {[%clk 0:02:46]}  Kh7 {[%clk 0:02:14]} 17. f4 {[%clk 0:02:36]}  Bg4 {[%clk 0:02:11]} 18. Nf3 {[%clk 0:02:33]}  Qd8 {[%clk 0:01:59]} 19. h3 {[%clk 0:02:27]}  Bxf3 {[%clk 0:01:58]} 20. Qxf3 {[%clk 0:02:27]}  a6 {[%clk 0:01:58]} 21. Bf1 {[%clk 0:02:24]}  Nd7 {[%clk 0:01:54]} 22. Rd2 {[%clk 0:02:21]}  Nf6 {[%clk 0:01:40]} 23. Ne3 {[%clk 0:02:04]}  Qb6 {[%clk 0:01:33]} 24. Kh1 {[%clk 0:02:00]}  Qc5 {[%clk 0:01:32]} 25. Bf2 {[%clk 0:01:54]}  Qa5 {[%clk 0:01:23]} 26. Bc4 {[%clk 0:01:51]}  Rf8 {[%clk 0:01:19]} 27. Bb3 {[%clk 0:01:48]}  b5 {[%clk 0:01:18]} 28. a3 {[%clk 0:01:43]}  Qc7 {[%clk 0:01:17]} 29. g4 {[%clk 0:01:42]}  Na5 {[%clk 0:01:16]} 30. Ba2 {[%clk 0:01:39]}  Nc4 {[%clk 0:01:16]} 31. Nxc4 {[%clk 0:01:39]}  bxc4 {[%clk 0:01:15]} 32. Re1 {[%clk 0:01:39]}  Qb7 {[%clk 0:01:13]} 33. Kg2 {[%clk 0:01:36]}  Nd7 {[%clk 0:01:08]} 34. e5 {[%clk 0:01:31]}  Rb8 {[%clk 0:00:45]} 35. exd6 {[%clk 0:01:26]}  exd6 {[%clk 0:00:44]} 36. Qxb7 {[%clk 0:01:19]}  Rxb7 {[%clk 0:00:44]} 37. Bxc4 {[%clk 0:01:20]}  Rfb8 {[%clk 0:00:41]} 38. Ree2 {[%clk 0:01:18]}  Nc5 {[%clk 0:00:37]} 39. Bd5 {[%clk 0:01:17]}  Rb5 {[%clk 0:00:34]} 40. b4 {[%clk 0:01:13]}  Bxc3 {[%clk 0:00:24]} 41. bxc5 {[%clk 0:01:12]}  Bxd2 {[%clk 0:00:23]} 42. Rxd2 {[%clk 0:01:10]}  dxc5 {[%clk 0:00:22]} 43. Bxf7 {[%clk 0:01:11]}  Rb2 {[%clk 0:00:19]} 44. Rd7 {[%clk 0:01:08]}  Rf8 {[%clk 0:00:16]} 45. Kg3 {[%clk 0:01:03]}  Rc2 {[%clk 0:00:11]} 46. Bb3+ {[%clk 0:01:01]} 1-0

[Event "December 5 Early 2023"]
[Site "https://www.chess.com"]
[Date "2023.12.05"]
[Round "2"]
[White "Damjanovic, Vuk"]
[Black "Novoselov, Roman"]
[Result "0-1"]
[Board "67"]
[TimeControl "180+1"]
[WhiteFideId "980021"]
[BlackFideId "4135067"]
[WhiteElo "2797"]
[BlackElo "2554"]
[WhiteTeam "SRB"]
[BlackTeam "RUS"]
[WhiteClock "0:00:02"]
[BlackClock "0:00:14"]

1. d4 {[%clk 0:03:00]}  Nf6 {[%clk 0:02:56]} 2. Nf3 {[%clk 0:03:01]}  d5 {[%clk 0:02:55]} 3. c4 {[%clk 0:03:00]}  e6 {[%clk 0:02:55]} 4. Bg5 {[%clk 0:02:57]}  Be7 {[%clk 0:02:53]} 5. Nc3 {[%clk 0:02:57]}  Nbd7 {[%clk 0:02:52]} 6. cxd5 {[%clk 0:02:49]}  exd5 {[%clk 0:02:51]} 7. e3 {[%clk 0:02:48]}  O-O {[%clk 0:02:51]} 8. h3 {[%clk 0:02:47]}  Re8 {[%clk 0:02:50]} 9. Bd3 {[%clk 0:02:46]}  c6 {[%clk 0:02:50]} 10. Qc2 {[%clk 0:02:43]}  Nf8 {[%clk 0:02:49]} 11. Ne5 {[%clk 0:02:34]}  Be6 {[%clk 0:02:41]} 12. O-O {[%clk 0:02:15]}  Rc8 {[%clk 0:02:40]} 13. b4 {[%clk 0:01:58]}  Bxb4 {[%clk 0:02:36]} 14. Rab1 {[%clk 0:01:58]}  Bxc3 {[%clk 0:02:35]} 15. Qxc3 {[%clk 0:01:59]}  Rc7 {[%clk 0:02:31]} 16. f4 {[%clk 0:01:53]}  Bc8 {[%clk 0:02:21]} 17. Qa3 {[%clk 0:01:39]}  b6 {[%clk 0:02:08]} 18. Rbc1 {[%clk 0:01:36]}  Bd7 {[%clk 0:01:24]} 19. f5 {[%clk 0:01:21]}  c5 {[%clk 0:01:15]} 20. Ng4 {[%clk 0:01:16]}  c4 {[%clk 0:01:02]} 21. Bc2 {[%clk 0:00:41]}  h5 {[%clk 0:01:00]} 22. Nxf6+ {[%clk 0:00:34]}  gxf6 {[%clk 0:00:58]} 23. Bf4 {[%clk 0:00:34]}  Rc8 {[%clk 0:00:55]} 24. Qb4 {[%clk 0:00:20]}  a5 {[%clk 0:00:51]} 25. Qe1 {[%clk 0:00:20]}  Nh7 {[%clk 0:00:40]} 26. Qh4 {[%clk 0:00:19]}  Kh8 {[%clk 0:00:34]} 27. Qxh5 {[%clk 0:00:19]}  Qe7 {[%clk 0:00:31]} 28. a4 {[%clk 0:00:16]}  Qa3 {[%clk 0:00:19]} 29. Qxf7 {[%clk 0:00:12]}  Re7 {[%clk 0:00:19]} 30. Qxd5 {[%clk 0:00:08]}  Bxa4 {[%clk 0:00:17]} 31. Bd6 {[%clk 0:00:06]}  Qxe3+ {[%clk 0:00:15]} 32. Kh1 {[%clk 0:00:07]}  Bxc2 {[%clk 0:00:15]} 33. Bxe7 {[%clk 0:00:08]}  Be4 {[%clk 0:00:15]} 34. Rf3 {[%clk 0:00:03]}  Qxc1+ {[%clk 0:00:13]} 35. Kh2 {[%clk 0:00:02]}  Bxd5 {[%clk 0:00:14]} 0-1

[Event "December 5 Early 2023"]
[Site "https://www.chess.com"]
[Date "2023.12.05"]
[Round "2"]
[White "Hajiyev, Kanan"]
[Black "Miladinovic, Igor"]
[Result "0-1"]
[Board "68"]
[TimeControl "180+1"]
[WhiteFideId "13404148"]
[BlackFideId "4203380"]
[WhiteElo "2553"]
[BlackElo "2795"]
[WhiteTeam "AZE"]
[BlackTeam "SRB"]
[WhiteClock "0:00:00"]
[BlackClock "0:01:15"]

1. d4 {[%clk 0:03:00]}  d5 {[%clk 0:02:52]} 2. Nf3 {[%clk 0:03:01]}  Bf5 {[%clk 0:02:51]} 3. c4 {[%clk 0:03:02]}  e6 {[%clk 0:02:51]} 4. cxd5 {[%clk 0:03:01]}  exd5 {[%clk 0:02:50]} 5. Nc3 {[%clk 0:03:01]}  c6 {[%clk 0:02:51]} 6. Bg5 {[%clk 0:02:51]}  Qb6 {[%clk 0:02:50]} 7. Qd2 {[%clk 0:02:38]}  Nd7 {[%clk 0:02:48]} 8. e3 {[%clk 0:02:39]}  Ngf6 {[%clk 0:02:47]} 9. Bxf6 {[%clk 0:02:25]}  Nxf6 {[%clk 0:02:46]} 10. Bd3 {[%clk 0:02:18]}  Bxd3 {[%clk 0:02:42]} 11. Qxd3 {[%clk 0:02:19]}  Qxb2 {[%clk 0:02:42]} 12. O-O {[%clk 0:02:19]}  Bb4 {[%clk 0:02:36]} 13. Na4 {[%clk 0:01:59]}  Qa3 {[%clk 0:02:35]} 14. Qxa3 {[%clk 0:01:54]}  Bxa3 {[%clk 0:02:35]} 15. Rab1 {[%clk 0:01:55]}  Rb8 {[%clk 0:02:18]} 16. Rb3 {[%clk 0:01:54]}  Bd6 {[%clk 0:02:17]} 17. Rfb1 {[%clk 0:01:54]}  b6 {[%clk 0:02:17]} 18. Rc1 {[%clk 0:01:54]}  Kd7 {[%clk 0:02:17]} 19. Nb2 {[%clk 0:01:53]}  Rhc8 {[%clk 0:02:15]} 20. Nd3 {[%clk 0:01:53]}  c5 {[%clk 0:02:09]} 21. Nfe5+ {[%clk 0:01:35]}  Ke6 {[%clk 0:02:09]} 22. Nf4+ {[%clk 0:01:26]}  Ke7 {[%clk 0:02:07]} 23. Kf1 {[%clk 0:01:06]}  g5 {[%clk 0:02:00]} 24. Ne2 {[%clk 0:00:41]}  c4 {[%clk 0:01:59]} 25. Rbb1 {[%clk 0:00:35]}  b5 {[%clk 0:01:59]} 26. Ng3 {[%clk 0:00:31]}  Ke6 {[%clk 0:01:58]} 27. f4 {[%clk 0:00:31]}  b4 {[%clk 0:01:44]} 28. Ke2 {[%clk 0:00:28]}  h5 {[%clk 0:01:34]} 29. fxg5 {[%clk 0:00:25]}  Bxe5 {[%clk 0:01:34]} 30. dxe5 {[%clk 0:00:25]}  Ng4 {[%clk 0:01:33]} 31. e4 {[%clk 0:00:22]}  d4 {[%clk 0:01:28]} 32. Nxh5 {[%clk 0:00:20]}  d3+ {[%clk 0:01:22]} 33. Kd2 {[%clk 0:00:10]}  Kxe5 {[%clk 0:01:22]} 34. h3 {[%clk 0:00:09]}  Nf2 {[%clk 0:01:21]} 35. Ke3 {[%clk 0:00:05]}  Nxe4 {[%clk 0:01:21]} 36. Nf4 {[%clk 0:00:03]}  d2 {[%clk 0:01:19]} 37. Rc2 {[%clk 0:00:02]}  Nc3 {[%clk 0:01:15]} 38. Rf1 {[%clk 0:00:01]}  d1=Q {[%clk 0:01:14]} 39. Rxd1 {[%clk 0:00:02]}  Nxd1+ {[%clk 0:01:15]} 40. Ke2 {[%clk 0:00:03]}  Nc3+ {[%clk 0:01:15]} 41. Ke3 {[%clk 0:00:00]}  Nd5+ {[%clk 0:01:15]} 0-1